bitfinex/quotes_BTCUSD_20250928
["timestamp","ask_amount","ask_price","bid_price","bid_amount"]
[1759062381258,8.83017517,109750.0,109740.0,0.03207117]
[1759062381807,8.54573517,109750.0,109740.0,0.03207117]
[1759062382005,8.83013517,109750.0,109740.0,0.03207117]
[1759062393586,8.62873888,109750.0,109740.0,0.03207117]
[1759062393996,8.34433888,109750.0,109740.0,0.03207117]
[1759062394238,8.62873888,109750.0,109740.0,0.03207117]
[1759062398982,8.62865165,109750.0,109740.0,0.03207117]
[1759062409211,8.34425165,109750.0,109740.0,0.03207117]
[1759062409586,8.62865165,109750.0,109740.0,0.03207117]
[1759062409961,8.65607783,109750.0,109740.0,0.03207117]
[1759062410352,8.37167783,109750.0,109740.0,0.02907117]
[1759062410552,8.65607783,109750.0,109740.0,0.02707117]
[1759062410998,8.71419387,109750.0,109740.0,0.02707117]
[1759062413712,8.69989566,109750.0,109740.0,0.02707117]
[1759062416596,8.71419494,109750.0,109740.0,0.02707117]
[1759062417969,8.69989566,109750.0,109740.0,0.02707117]
[1759062419389,8.42991606,109750.0,109740.0,0.02707117]
[1759062420692,8.44421535,109750.0,109740.0,0.02707117]
[1759062421118,8.15981535,109750.0,109740.0,0.02707117]
[1759062421317,8.44421535,109750.0,109740.0,0.02707117]
[1759062431129,8.44421535,109750.0,109740.0,0.02275]
[1759062431332,8.53292682,109750.0,109740.0,0.02275]
[1759062431754,8.51862753,109750.0,109740.0,0.02275]
[1759062434204,8.52162753,109750.0,109740.0,0.02275]
[1759062434409,8.53592801,109750.0,109740.0,0.02275]
[1759062436913,8.63092801,109750.0,109740.0,0.02275]
[1759062440635,8.25152801,109750.0,109740.0,0.02275]
[1759062440841,8.63092801,109750.0,109740.0,0.02275]
[1759062441038,8.53592801,109750.0,109740.0,0.02275]
[1759062441251,8.63092801,109750.0,109740.0,0.02275]
[1759062441900,8.61662753,109750.0,109740.0,0.02275]
[1759062444745,8.63092819,109750.0,109740.0,0.02275]
[1759062448553,8.61662753,109750.0,109740.0,0.02275]
[1759062449053,8.23722753,109750.0,109740.0,0.02275]
[1759062449235,8.23722753,109750.0,109740.0,0.028]
[1759062449236,8.14851606,109750.0,109740.0,0.028]
[1759062449479,8.14851606,109750.0,109740.0,0.03232117]
[1759062449674,8.43295606,109750.0,109740.0,0.03232117]
[1759062450507,8.42995606,109750.0,109740.0,0.03232117]
[1759062450721,8.43095606,109750.0,109740.0,0.03232117]
[1759062451323,8.49199409,109750.0,109740.0,0.03232117]
[1759062451884,8.20755409,109750.0,109740.0,0.03232117]
[1759062452080,8.44525558,109750.0,109740.0,0.03232117]
[1759062452281,8.16081558,109750.0,109740.0,0.03232117]
[1759062452498,8.44525558,109750.0,109740.0,0.03232117]
[1759062458211,8.43095606,109750.0,109740.0,0.03232117]
[1759062459820,8.43091606,109750.0,109740.0,0.03232117]
[1759062461235,8.44521535,109750.0,109740.0,0.03232117]
[1759062461467,8.53182646,109750.0,109740.0,0.03232117]
[1759062463012,7.63858301,109750.0,109740.0,0.03232117]
[1759062463462,8.10521535,109750.0,109740.0,0.03232117]
[1759062463675,8.44521535,109750.0,109740.0,0.03232117]
[1759062463898,8.44421535,109750.0,109740.0,0.03232117]
[1759062464110,8.44521535,109750.0,109740.0,0.03232117]
[1759062464937,8.44521535,109750.0,109740.0,0.03432117]
[1759062465792,8.44421535,109750.0,109740.0,0.03432117]
[1759062465995,8.44421535,109750.0,109740.0,0.03832117]
[1759062467978,8.23134109,109750.0,109740.0,0.03832117]
[1759062471292,8.57316243,109750.0,109740.0,0.03832117]
[1759062471431,8.85756243,109750.0,109740.0,0.03832117]
[1759062477489,8.83009625,109750.0,109740.0,0.03832117]
[1759062481361,8.81579696,109750.0,109740.0,0.03832117]
[1759062484154,8.83009474,109750.0,109740.0,0.03832117]
[1759062488264,8.85492252,109750.0,109740.0,0.03307117]
[1759062488718,8.8823494,109750.0,109740.0,0.03307117]
[1759062488875,8.86805162,109750.0,109740.0,0.03307117]
[1759062493620,8.86805162,109750.0,109740.0,0.03107117]
[1759062494371,8.86805162,109750.0,109740.0,0.02707117]
[1759062494782,8.86905162,109750.0,109740.0,0.02707117]
[1759062496892,8.58469162,109750.0,109740.0,0.02707117]
[1759062497141,8.86905162,109750.0,109740.0,0.02707117]
[1759062500339,8.65251284,109750.0,109740.0,0.02707117]
[1759062500582,8.55038518,109750.0,109740.0,0.02707117]
[1759062500773,8.83474518,109750.0,109740.0,0.02707117]
[1759062500996,8.86483964,109750.0,109740.0,0.02707117]
[1759062501139,8.87913866,109750.0,109740.0,0.02707117]
[1759062502586,8.59477866,109750.0,109740.0,0.02707117]
[1759062502712,8.87913866,109750.0,109740.0,0.02707117]
[1759062504478,8.87913866,109750.0,109740.0,0.02914117]
[1759062505051,8.87913866,109750.0,109740.0,0.02707117]
[1759062506896,8.5394127,109750.0,109740.0,0.02707117]
[1759062508562,8.2550527,109750.0,109740.0,0.02707117]
[1759062508776,8.5394127,109750.0,109740.0,0.02707117]
[1759062509839,8.8794127,109750.0,109740.0,0.02707117]
[1759062514065,8.86511368,109750.0,109740.0,0.02707117]
[1759062515093,8.95382515,109750.0,109740.0,0.02707117]
[1759062515766,8.95382515,109750.0,109740.0,0.02275]
[1759062516902,8.96812498,109750.0,109740.0,0.02275]
[1759062517531,8.96808498,109750.0,109740.0,0.02275]
[1759062517742,9.06308498,109750.0,109740.0,0.02275]
[1759062518368,8.96011368,109750.0,109740.0,0.02275]
[1759062521030,8.97441349,109750.0,109740.0,0.02275]
[1759062522024,8.97441349,109750.0,109740.0,0.02792]
[1759062522251,8.87941349,109750.0,109740.0,0.02482]
[1759062522657,8.87941349,109750.0,109740.0,0.02275]
[1759062523066,8.68376496,109750.0,109740.0,0.02275]
[1759062523274,8.96812496,109750.0,109740.0,0.02275]
[1759062524139,8.68376496,109750.0,109740.0,0.02275]
[1759062524353,8.96812496,109750.0,109740.0,0.02275]
[1759062548392,8.68376496,109750.0,109740.0,0.02275]
[1759062548593,9.06308496,109750.0,109740.0,0.02275]
[1759062552884,8.68376496,109750.0,109740.0,0.02275]
[1759062553294,9.06308496,109750.0,109740.0,0.02275]
[1759062556145,8.68376496,109750.0,109740.0,0.02275]
[1759062556293,8.96808496,109750.0,109740.0,0.02275]
[1759062556489,8.96687766,109750.0,109740.0,0.02275]
[1759062562233,8.89015996,109750.0,109740.0,0.02275]
[1759062564506,8.98515996,109750.0,109740.0,0.02275]
[1759062565748,8.59154015,109750.0,109740.0,0.02275]
[1759062565952,8.97090015,109750.0,109740.0,0.02275]
[1759062567179,8.59154015,109750.0,109740.0,0.02275]
[1759062567391,8.97098015,109750.0,109740.0,0.02275]
[1759062568007,8.87594015,109750.0,109740.0,0.02275]
[1759062568218,8.97094015,109750.0,109740.0,0.02275]
[1759062568849,8.98524005,109750.0,109740.0,0.02275]
[1759062569918,8.97094015,109750.0,109740.0,0.02275]
[1759062570120,8.97094015,109750.0,109740.0,0.02479]
[1759062570738,8.59154015,109750.0,109740.0,0.02479]
[1759062570941,8.97106015,109750.0,109740.0,0.02479]
[1759062571349,8.59154015,109750.0,109740.0,0.02479]
[1759062571557,8.97106015,109750.0,109740.0,0.02772]
[1759062571757,8.87602015,109750.0,109740.0,0.02772]
[1759062571962,8.97102015,109750.0,109740.0,0.02772]
[1759062572799,8.98532001,109750.0,109740.0,0.02772]
[1759062574415,8.98532001,109750.0,109740.0,0.02275]
[1759062574618,9.00684199,109750.0,109740.0,0.02275]
[1759062577577,8.99254213,109750.0,109740.0,0.02275]
[1759062579321,9.00117205,109750.0,109740.0,0.02275]
[1759062580722,9.01547294,109750.0,109740.0,0.02275]
[1759062584833,8.80481372,109750.0,109740.0,0.02275]
[1759062585058,9.00979606,109750.0,109740.0,0.02275]
[1759062585665,9.00975606,109750.0,109740.0,0.02275]
[1759062587236,8.63031606,109750.0,109740.0,0.02275]
[1759062587608,9.00971606,109750.0,109740.0,0.02275]
[1759062587821,8.99541517,109750.0,109740.0,0.02275]
[1759062590886,9.00971609,109750.0,109740.0,0.02275]
[1759062593069,8.51145272,109750.0,109740.0,0.02781]
[1759062593272,8.26645272,109750.0,109740.0,0.03213117]
[1759062593475,8.89085272,109750.0,109740.0,0.03213117]
[1759062593684,8.51145272,109750.0,109740.0,0.03213117]
[1759062593886,8.89085272,109750.0,109740.0,0.03213117]
[1759062594089,8.51145272,109750.0,109740.0,0.03213117]
[1759062594289,8.89089272,109750.0,109740.0,0.03213117]
[1759062594493,8.82341612,109750.0,109740.0,0.03213117]
[1759062594698,8.91841612,109750.0,109740.0,0.03213117]
[1759062594924,8.53897612,109750.0,109740.0,0.03213117]
[1759062595125,8.91841612,109750.0,109740.0,0.03213117]
[1759062596115,8.82341612,109750.0,109740.0,0.03213117]
[1759062596341,8.91841612,109750.0,109740.0,0.03213117]
[1759062597300,7.98922038,109750.0,109740.0,0.03213117]
[1759062597481,8.4188018,109750.0,109740.0,0.03213117]
[1759062597611,8.7588018,109750.0,109740.0,0.03213117]
[1759062597844,8.57656946,109750.0,109740.0,0.03213117]
[1759062598251,8.29216946,109750.0,109740.0,0.03213117]
[1759062598454,8.57664946,109750.0,109740.0,0.03213117]
[1759062599412,8.57664946,109750.0,109740.0,0.03413117]
[1759062599620,8.7588818,109750.0,109740.0,0.03413117]
[1759062600065,8.7588818,109750.0,109740.0,0.03913117]
[1759062600284,8.55739334,109750.0,109740.0,0.03913117]
[1759062600495,8.375161,109750.0,109740.0,0.03913117]
[1759062600915,8.38945929,109750.0,109740.0,0.03913117]
[1759062601572,8.10497929,109750.0,109740.0,0.03913117]
[1759062601984,7.78866712,109750.0,109740.0,0.03913117]
[1759062602200,8.07306712,109750.0,109740.0,0.05735606]
[1759062602354,7.78866712,109750.0,109740.0,0.05735606]
[1759062602997,7.78866712,109750.0,109740.0,0.03913117]
[1759062603221,7.78866712,109750.0,109740.0,0.05735606]
[1759062603429,7.78866712,109750.0,109740.0,0.03913117]
[1759062603638,7.80296415,109750.0,109740.0,0.03913117]
[1759062604379,8.08740415,109750.0,109740.0,0.03913117]
[1759062605011,8.26963649,109750.0,109740.0,0.03913117]
[1759062607727,8.25533946,109750.0,109740.0,0.03913117]
[1759062608190,7.78866712,109750.0,109740.0,0.03913117]
[1759062608394,8.07318712,109750.0,109740.0,0.03913117]
[1759062610987,8.08748442,109750.0,109740.0,0.03913117]
[1759062612650,8.26971676,109750.0,109740.0,0.03913117]
[1759062615440,8.08748442,109750.0,109740.0,0.03913117]
[1759062615602,8.26971676,109750.0,109740.0,0.03913117]
[1759062616434,8.08748442,109750.0,109740.0,0.03913117]
[1759062617380,8.26971676,109750.0,109740.0,0.03913117]
[1759062617577,8.25541946,109750.0,109740.0,0.03913117]
[1759062618220,8.07318712,109750.0,109740.0,0.03913117]
[1759062620521,8.08748438,109750.0,109740.0,0.03913117]
[1759062620720,7.80296438,109750.0,109740.0,0.03913117]
[1759062621014,8.08732438,109750.0,109740.0,0.03913117]
[1759062621554,7.80296438,109750.0,109740.0,0.03913117]
[1759062621749,8.08728438,109750.0,109740.0,0.03913117]
[1759062626274,8.26951672,109750.0,109740.0,0.03913117]
[1759062627331,8.25521946,109750.0,109740.0,0.03913117]
[1759062628387,8.07298712,109750.0,109740.0,0.03913117]
[1759062628907,8.61918517,109750.0,109740.0,0.03407117]
[1759062629138,8.59521946,109750.0,109740.0,0.03407117]
[1759062630843,8.6095176,109750.0,109740.0,0.03407117]
[1759062632325,8.5975026,109750.0,109740.0,0.03407117]
[1759062637464,8.58320446,109750.0,109740.0,0.03407117]
[1759062642638,8.12487699,109750.0,109740.0,0.03407117]
[1759062643669,8.16134481,109750.0,109740.0,0.03407117]
[1759062643969,8.44578481,109750.0,109740.0,0.03407117]
[1759062650776,8.46008292,109750.0,109740.0,0.03207117]
[1759062650947,8.46008292,109750.0,109740.0,0.02707117]
[1759062651146,8.46008292,109750.0,109740.0,0.02907117]
[1759062653494,8.54879439,109750.0,109740.0,0.02907117]
[1759062657576,8.53449628,109750.0,109740.0,0.02907117]
[1759062658417,8.56192236,109750.0,109740.0,0.02907117]
[1759062665222,8.56192236,109750.0,109740.0,0.02707117]
[1759062666077,8.56292236,109750.0,109740.0,0.02707117]
[1759062670715,8.57722161,109750.0,109740.0,0.02707117]
[1759062676066,8.29278161,109750.0,109740.0,0.02707117]
[1759062676295,8.67210161,109750.0,109740.0,0.02707117]
[1759062676498,8.67210161,109750.0,109740.0,0.02275]
[1759062676689,8.67210161,109750.0,109740.0,0.01401]
[1759062676898,8.27848236,109750.0,109740.0,0.01401]
[1759062677130,8.65780236,109750.0,109740.0,0.01401]
[1759062677326,8.56280236,109750.0,109740.0,0.01401]
[1759062677533,8.65780236,109750.0,109740.0,0.01401]
[1759062679949,8.27848236,109750.0,109740.0,0.01401]
[1759062680158,8.67210222,109750.0,109740.0,0.01401]
[1759062681836,8.48839075,109750.0,109740.0,0.01912]
[1759062682036,8.20407075,109750.0,109740.0,0.01912]
[1759062682364,8.37869356,109750.0,109740.0,0.01912]
[1759062682578,8.5609259,109750.0,109740.0,0.01912]
[1759062682979,8.1816059,109750.0,109740.0,0.01912]
[1759062683189,8.5609259,109750.0,109740.0,0.01912]
[1759062685321,8.1816059,109750.0,109740.0,0.02344117]
[1759062685521,8.5609259,109750.0,109740.0,0.02344117]
[1759062686172,8.1816059,109750.0,109740.0,0.02344117]
[1759062686377,8.4659259,109750.0,109740.0,0.02344117]
[1759062686744,8.4649259,109750.0,109740.0,0.02344117]
[1759062686950,8.4649259,109750.0,109740.0,0.02544117]
[1759062687762,8.45062604,109750.0,109740.0,0.02544117]
[1759062690813,8.46492453,109750.0,109740.0,0.02544117]
[1759062693048,8.27129273,109750.0,109740.0,0.02544117]
[1759062694885,8.61129273,109750.0,109740.0,0.02544117]
[1759062697661,8.59699424,109750.0,109740.0,0.02544117]
[1759062700761,8.68570571,109750.0,109740.0,0.02544117]
[1759062701417,8.68570571,109750.0,109740.0,0.02033117]
[1759062701972,8.70000434,109750.0,109740.0,0.02033117]
[1759062707511,8.68570571,109750.0,109740.0,0.02033117]
[1759062710190,8.78070571,109750.0,109740.0,0.02033117]
[1759062710399,8.79500434,109750.0,109740.0,0.02245117]
[1759062713508,8.79500434,109750.0,109740.0,0.02033117]
[1759062716363,8.79500434,109750.0,109740.0,0.01833117]
[1759062716573,8.79600434,109750.0,109740.0,0.01833117]
[1759062716816,8.79600434,109750.0,109740.0,0.01401]
[1759062717906,8.78170571,109750.0,109740.0,0.01401]
[1759062720724,8.79600598,109750.0,109740.0,0.01401]
[1759062723942,8.41668598,109750.0,109740.0,0.01401]
[1759062724162,8.79600598,109750.0,109740.0,0.01401]
[1759062724594,0.52228217,109720.0,109710.0,0.00736117]
[1759062724807,8.69860645,109720.0,109710.0,0.00740765]
[1759062725023,8.72344645,109720.0,109710.0,0.00954765]
[1759062725238,8.737749,109720.0,109710.0,0.00954765]
[1759062725465,8.765185,109720.0,109710.0,0.00954765]
[1759062725884,8.765185,109720.0,109710.0,0.01354765]
[1759062726089,8.765185,109720.0,109710.0,0.02154765]
[1759062726509,8.58290283,109720.0,109710.0,0.02154765]
[1759062726731,8.765185,109720.0,109710.0,0.04487765]
[1759062727154,8.765185,109720.0,109710.0,0.03287765]
[1759062727366,8.765185,109720.0,109710.0,0.03487765]
[1759062727581,8.75088245,109720.0,109710.0,0.03487765]
[1759062732716,8.37156245,109720.0,109710.0,0.03487765]
[1759062732898,8.75088245,109720.0,109710.0,0.03487765]
[1759062733513,8.37156245,109720.0,109710.0,0.03487765]
[1759062733715,8.65588245,109720.0,109710.0,0.03487765]
[1759062733939,8.75088245,109720.0,109710.0,0.03487765]
[1759062739370,8.37156245,109720.0,109710.0,0.03487765]
[1759062739574,8.68042617,109720.0,109710.0,0.03487765]
[1759062742012,8.69472853,109720.0,109710.0,0.03487765]
[1759062744660,8.13312636,109720.0,109710.0,0.03487765]
[1759062744875,8.39001036,109720.0,109710.0,0.03487765]
[1759062745093,8.05001036,109720.0,109710.0,0.03487765]
[1759062745305,8.39001036,109720.0,109710.0,0.03487765]
[1759062745870,0.37914236,109720.0,109710.0,0.03487765]
[1759062746222,0.66346236,109720.0,109710.0,0.03487765]
[1759062746690,0.66346236,109720.0,109710.0,0.05310752]
[1759062746912,0.66346236,109720.0,109710.0,0.05110752]
[1759062747135,0.66346236,109720.0,109710.0,0.05910752]
[1759062747536,0.64916,109720.0,109710.0,0.05910752]
[1759062747728,0.64916,109720.0,109710.0,0.06310752]
[1759062748565,0.36484,109720.0,109710.0,0.06310752]
[1759062748773,0.64916,109720.0,109710.0,0.06310752]
[1759062750880,0.66346085,109720.0,109710.0,0.06310752]
[1759062756117,0.29862085,109720.0,109710.0,0.06310752]
[1759062757397,0.28432,109720.0,109710.0,0.06310752]
[1759062760346,0.64883,109730.0,109720.0,0.00432117]
[1759062760498,8.62428,109730.0,109720.0,0.00642117]
[1759062760701,8.62428,109730.0,109720.0,0.03279117]
[1759062761574,8.28428,109730.0,109720.0,0.03279117]
[1759062761978,8.29858052,109730.0,109720.0,0.03279117]
[1759062762502,8.29858052,109730.0,109720.0,0.03679117]
[1759062762706,8.29858052,109730.0,109720.0,0.03367117]
[1759062762939,8.29858052,109730.0,109720.0,0.03679117]
[1759062763146,8.29858052,109730.0,109720.0,0.03879117]
[1759062763494,8.63858052,109730.0,109720.0,0.03879117]
[1759062764300,8.63858052,109730.0,109720.0,0.03567117]
[1759062765890,8.15849163,109730.0,109720.0,0.03567117]
[1759062766052,8.35430052,109730.0,109720.0,0.03567117]
[1759062767064,8.62428,109730.0,109720.0,0.03567117]
[1759062769692,8.80654556,109730.0,109720.0,0.03567117]
[1759062769886,8.62428,109730.0,109720.0,0.03567117]
[1759062770310,8.82084608,109730.0,109720.0,0.03567117]
[1759062770693,8.82084608,109730.0,109720.0,0.03357117]
[1759062776498,8.80654556,109730.0,109720.0,0.03357117]
[1759062780076,8.8208461,109730.0,109720.0,0.03357117]
[1759062787371,8.80654556,109730.0,109720.0,0.03357117]
[1759062789762,8.89525703,109730.0,109720.0,0.03357117]
[1759062790153,8.46654556,109730.0,109720.0,0.03357117]
[1759062790874,8.48084616,109730.0,109720.0,0.03357117]
[1759062792885,8.82084616,109730.0,109720.0,0.03357117]
[1759062797337,8.80654556,109730.0,109720.0,0.03357117]
[1759062800523,8.82084622,109730.0,109720.0,0.03357117]
[1759062802175,8.84827718,109730.0,109720.0,0.03357117]
[1759062807781,8.83397652,109730.0,109720.0,0.03357117]
[1759062810707,8.93698868,109730.0,109720.0,0.03357117]
[1759062817335,8.92268799,109730.0,109720.0,0.03357117]
[1759062817910,8.74170215,109730.0,109720.0,0.03357117]
[1759062818146,8.65299068,109730.0,109720.0,0.03357117]
[1759062820808,8.36871068,109730.0,109720.0,0.03357117]
[1759062821006,8.65291068,109730.0,109720.0,0.03357117]
[1759062823731,8.65291068,109730.0,109720.0,0.03563117]
[1759062824981,8.65291068,109730.0,109720.0,0.03879117]
[1759062827640,8.36871068,109730.0,109720.0,0.03879117]
[1759062827820,8.65287068,109730.0,109720.0,0.03879117]
[1759062828525,8.47701163,109730.0,109720.0,0.03879117]
[1759062830156,8.19285163,109730.0,109720.0,0.03879117]
[1759062830362,8.01058607,109730.0,109720.0,0.03879117]
[1759062830606,8.4913123,109730.0,109720.0,0.03879117]
[1759062835160,8.2071523,109730.0,109720.0,0.03879117]
[1759062835364,8.4913123,109730.0,109720.0,0.03879117]
[1759062837328,8.47701163,109730.0,109720.0,0.03879117]
[1759062839853,8.26456299,109730.0,109720.0,0.03879117]
[1759062840060,7.79813743,109730.0,109720.0,0.03879117]
[1759062840381,0.65159096,109730.0,109720.0,0.03879117]
[1759062840591,0.66589128,109730.0,109720.0,0.03879117]
[1759062842878,0.84815684,109730.0,109720.0,0.03879117]
[1759062843087,0.66589128,109730.0,109720.0,0.03879117]
[1759062843300,0.84815684,109730.0,109720.0,0.03879117]
[1759062843926,0.66589128,109730.0,109720.0,0.03879117]
[1759062844564,0.84815684,109730.0,109720.0,0.03879117]
[1759062845595,0.66589128,109730.0,109720.0,0.03879117]
[1759062847640,0.65159096,109730.0,109720.0,0.03879117]
[1759062850370,0.83385652,109730.0,109720.0,0.03879117]
[1759062851245,8.8481568,109730.0,109720.0,0.03879117]
[1759062851871,8.8481568,109730.0,109720.0,0.03563117]
[1759062852189,8.8481568,109730.0,109720.0,0.03867117]
[1759062852393,8.8481568,109730.0,109720.0,0.03357117]
[1759062854036,8.66589124,109730.0,109720.0,0.03357117]
[1759062854237,8.66589124,109730.0,109720.0,0.03565117]
[1759062854987,8.8481568,109730.0,109720.0,0.03565117]
[1759062855375,8.8481568,109730.0,109720.0,0.03357117]
[1759062857635,8.83385652,109730.0,109720.0,0.03357117]
[1759062870881,8.84815707,109730.0,109720.0,0.03357117]
[1759062873129,8.56399707,109730.0,109720.0,0.03357117]
[1759062873328,8.84815707,109730.0,109720.0,0.03357117]
[1759062873534,8.65270854,109730.0,109720.0,0.03357117]
[1759062873735,8.93682854,109730.0,109720.0,0.03357117]
[1759062873945,8.93682854,109730.0,109720.0,0.02925]
[1759062874154,9.03182854,109730.0,109720.0,0.02925]
[1759062874802,9.03182854,109730.0,109720.0,0.02525]
[1759062875664,9.03182854,109730.0,109720.0,0.02325]
[1759062875837,9.03190854,109730.0,109720.0,0.02325]
[1759062876944,8.65270854,109730.0,109720.0,0.02325]
[1759062877148,9.01760799,109730.0,109720.0,0.02325]
[1759062877686,8.92260799,109730.0,109720.0,0.02325]
[1759062877895,9.01760799,109730.0,109720.0,0.02325]
[1759062878784,8.63840799,109730.0,109720.0,0.02325]
[1759062879029,9.01760799,109730.0,109720.0,0.02325]
[1759062880496,9.03191038,109730.0,109720.0,0.02325]
[1759062880938,8.65271038,109730.0,109720.0,0.02325]
[1759062881154,8.93687038,109730.0,109720.0,0.02325]
[1759062881364,9.03187038,109730.0,109720.0,0.02325]
[1759062881994,8.65271038,109730.0,109720.0,0.02325]
[1759062882197,9.03187038,109730.0,109720.0,0.02325]
[1759062884144,9.05302888,109730.0,109720.0,0.02325]
[1759062884362,9.03187038,109730.0,109720.0,0.02325]
[1759062887190,8.93687038,109730.0,109720.0,0.02325]
[1759062887395,9.03187038,109730.0,109720.0,0.02325]
[1759062887756,9.01756799,109730.0,109720.0,0.02325]
[1759062888402,8.63840799,109730.0,109720.0,0.02325]
[1759062888709,9.01756799,109730.0,109720.0,0.02325]
[1759062890856,9.03187052,109730.0,109720.0,0.02325]
[1759062891489,8.65271052,109730.0,109720.0,0.02325]
[1759062891610,9.03191052,109730.0,109720.0,0.02325]
[1759062897584,9.01760799,109730.0,109720.0,0.02325]
[1759062900138,8.63840799,109730.0,109720.0,0.02521]
[1759062900384,8.92889652,109730.0,109720.0,0.02826]
[1759062900637,8.92889652,109730.0,109720.0,0.03258117]
[1759062901272,8.94319855,109730.0,109720.0,0.03258117]
[1759062902114,8.56399855,109730.0,109720.0,0.03258117]
[1759062902326,8.93691002,109730.0,109720.0,0.03258117]
[1759062902740,8.65271002,109730.0,109720.0,0.03258117]
[1759062902972,8.93691002,109730.0,109720.0,0.03258117]
[1759062904263,8.74305547,109730.0,109720.0,0.03258117]
[1759062904722,8.77048995,109730.0,109720.0,0.03258117]
[1759062905320,8.48628995,109730.0,109720.0,0.03258117]
[1759062905550,8.77048995,109730.0,109720.0,0.03258117]
[1759062906390,8.39757848,109730.0,109720.0,0.03258117]
[1759062906541,8.50820207,109730.0,109720.0,0.03258117]
[1759062906760,8.84820207,109730.0,109720.0,0.03258117]
[1759062907147,8.46646556,109730.0,109720.0,0.03258117]
[1759062907365,8.80646556,109730.0,109720.0,0.03258117]
[1759062907998,8.89517703,109730.0,109720.0,0.03258117]
[1759062908622,8.89517703,109730.0,109720.0,0.03458117]
[1759062908978,8.89517703,109730.0,109720.0,0.03558117]
[1759062909973,8.90947787,109730.0,109720.0,0.03558117]
[1759062916546,8.90947787,109730.0,109720.0,0.03253117]
[1759062916713,8.90947787,109730.0,109720.0,0.03057117]
[1759062917072,8.89517703,109730.0,109720.0,0.02062117]
[1759062918186,8.89517703,109730.0,109720.0,0.0163]
[1759062918415,8.89517703,109730.0,109720.0,0.02062117]
[1759062918622,8.92261249,109730.0,109720.0,0.02062117]
[1759062918824,8.92261249,109730.0,109720.0,0.01862117]
[1759062919032,8.92261249,109730.0,109720.0,0.01762117]
[1759062920299,8.93691469,109730.0,109720.0,0.01762117]
[1759062926372,8.75215756,109730.0,109720.0,0.01762117]
[1759062929830,8.75215756,109730.0,109720.0,0.0133]
[1759062930509,8.73785536,109730.0,109720.0,0.0133]
[1759062933470,8.752158,109730.0,109720.0,0.0133]
[1759062935389,8.467958,109730.0,109720.0,0.0133]
[1759062935591,8.847118,109730.0,109720.0,0.0133]
[1759062937978,8.83281536,109730.0,109720.0,0.0133]
[1759062938697,8.65816624,109730.0,109720.0,0.0133]
[1759062938904,8.37400624,109730.0,109720.0,0.0133]
[1759062939107,8.65816624,109730.0,109720.0,0.0133]
[1759062939310,8.27900624,109730.0,109720.0,0.0133]
[1759062939514,8.56316624,109730.0,109720.0,0.01538]
[1759062939724,8.65816624,109730.0,109720.0,0.01538]
[1759062940762,8.67246886,109730.0,109720.0,0.01538]
[1759062947482,8.65816624,109730.0,109720.0,0.01538]
[1759062948688,8.19029477,109730.0,109720.0,0.02289117]
[1759062949082,8.56953477,109730.0,109720.0,0.02289117]
[1759062949480,8.19029477,109730.0,109720.0,0.02289117]
[1759062949688,8.47449477,109730.0,109720.0,0.02289117]
[1759062949892,8.56953477,109730.0,109720.0,0.02289117]
[1759062950713,8.67254822,109730.0,109720.0,0.02289117]
[1759062952889,7.83716129,109730.0,109720.0,0.02289117]
[1759062953090,8.46136129,109730.0,109720.0,0.02289117]
[1759062953296,8.12136129,109730.0,109720.0,0.02289117]
[1759062953714,8.46136129,109730.0,109720.0,0.02289117]
[1759062954143,8.46136129,109730.0,109720.0,0.02489117]
[1759062954344,8.46136129,109730.0,109720.0,0.02589117]
[1759062954552,8.55007276,109730.0,109720.0,0.02589117]
[1759062957834,8.36291076,109730.0,109720.0,0.02589117]
[1759062958154,8.36291076,109730.0,109720.0,0.02062117]
[1759062958715,8.38353193,109730.0,109720.0,0.02062117]
[1759062959453,8.38353193,109730.0,109720.0,0.02266117]
[1759062961006,8.39783329,109730.0,109720.0,0.02266117]
[1759062963456,8.39783329,109730.0,109720.0,0.02566117]
[1759062964093,8.39783329,109730.0,109720.0,0.02062117]
[1759062964941,8.49279329,109730.0,109720.0,0.02062117]
[1759062967364,8.49279329,109730.0,109720.0,0.0163]
[1759062967922,8.47849193,109730.0,109720.0,0.0163]
[1759062968368,8.47849193,109730.0,109720.0,0.0143]
[1759062968574,8.47849193,109730.0,109720.0,0.0133]
[1759062970704,8.49279512,109730.0,109720.0,0.0133]
[1759062971050,8.11363512,109730.0,109720.0,0.0133]
[1759062971263,8.49279512,109730.0,109720.0,0.0133]
[1759062973593,8.11363512,109730.0,109720.0,0.0133]
[1759062973803,8.49279512,109730.0,109720.0,0.0133]
[1759062975068,8.31712719,109730.0,109720.0,0.0133]
[1759062977976,7.93796719,109730.0,109720.0,0.0133]
[1759062978284,8.31712719,109730.0,109720.0,0.0133]
[1759062979970,8.302824,109730.0,109720.0,0.0133]
[1759062980950,7.923664,109730.0,109720.0,0.0133]
[1759062981157,8.302824,109730.0,109720.0,0.0133]
[1759062982784,8.31712667,109730.0,109720.0,0.0133]
[1759062982997,7.93796667,109730.0,109720.0,0.0133]
[1759062983200,8.31712667,109730.0,109720.0,0.0133]
[1759062984520,7.93796667,109730.0,109720.0,0.0133]
[1759062984746,8.31716667,109730.0,109720.0,0.0133]
[1759062986096,8.34731857,109730.0,109720.0,0.0133]
[1759062987467,8.36847707,109730.0,109720.0,0.0133]
[1759062987686,8.34731857,109730.0,109720.0,0.0133]
[1759062989901,7.96811857,109730.0,109720.0,0.0133]
[1759062990107,8.34731857,109730.0,109720.0,0.0133]
[1759062990732,7.96811857,109730.0,109720.0,0.0133]
[1759062990991,8.34731857,109730.0,109720.0,0.0133]
[1759062991836,8.3330159,109730.0,109720.0,0.0133]
[1759062993074,7.9538159,109730.0,109720.0,0.0133]
[1759062993291,8.2379759,109730.0,109720.0,0.0133]
[1759062993537,8.3330159,109730.0,109720.0,0.0133]
[1759062994704,8.34731915,109730.0,109720.0,0.0133]
[1759062997796,8.3330159,109730.0,109720.0,0.0133]
[1759062998618,7.9538159,109730.0,109720.0,0.0133]
[1759062998824,8.3330159,109730.0,109720.0,0.0133]
[1759063000790,8.34731915,109730.0,109720.0,0.0133]
[1759063001753,7.96811915,109730.0,109720.0,0.0133]
[1759063001953,8.34731915,109730.0,109720.0,0.0133]
[1759063002924,7.96811915,109730.0,109720.0,0.0133]
[1759063003138,8.34731915,109730.0,109720.0,0.0133]
[1759063007715,8.3330159,109730.0,109720.0,0.0133]
[1759063010777,8.34731915,109730.0,109720.0,0.0133]
[1759063018436,7.96811915,109730.0,109720.0,0.0133]
[1759063018571,8.72747915,109730.0,109720.0,0.0133]
[1759063019147,7.96811915,109730.0,109720.0,0.0133]
[1759063019280,8.63243915,109730.0,109720.0,0.0133]
[1759063019484,8.7131759,109730.0,109720.0,0.01525]
[1759063020795,8.7131759,109730.0,109710.0,0.00319648]
[1759063021009,8.12865987,109720.0,109710.0,4.648e-05]
[1759063021210,8.23852984,109720.0,109710.0,4.648e-05]